fUSD/lending_fUSD_20260427
["ID","MTS","AMOUNT","RATE_DAILY","PERIOD"]
[421215934,1777266275774,500.0,6.696e-05,2]
[421215935,1777266279543,365.27,5.7e-05,2]
[421215936,1777266287384,500.0,6.696e-05,2]
[421215937,1777266287420,509.07218916,6.696e-05,2]
[421215938,1777266301264,1200.0,6.696e-05,2]
[421215939,1777266304179,500.0,6.696e-05,2]
[421215940,1777266311759,1148.0,6e-05,6]
[421215941,1777266321867,58.79952348,6.696e-05,2]
[421215942,1777266321895,441.20047652,6.696e-05,2]
[421215943,1777266335503,500.0,6.696e-05,2]
[421215945,1777266349006,500.0,6.696e-05,2]
[421215946,1777266349062,500.0,6.696e-05,2]
[421215947,1777266362137,150.0,6.696e-05,2]
[421215948,1777266366363,500.0,6.696e-05,2]
[421215949,1777266381072,500.0,6.696e-05,2]
[421215950,1777266393065,500.0,6.696e-05,2]
[421215951,1777266395424,176.0,6.696e-05,3]
[421215952,1777266404660,500.0,6.696e-05,2]
[421215953,1777266417289,500.0,6.696e-05,2]
[421215954,1777266435332,500.0,6.696e-05,2]
[421215955,1777266451642,500.0,6.696e-05,2]
[421215956,1777266463250,500.0,6.696e-05,2]
[421215957,1777266474784,500.0,6.696e-05,2]
[421215958,1777266486395,500.0,6.696e-05,2]
[421215959,1777266498015,500.0,6.696e-05,2]
[421215960,1777266508104,500.0,6.696e-05,2]
[421215961,1777266508158,500.0,6.696e-05,2]
[421215962,1777266539981,500.0,6.696e-05,2]
[421215963,1777266542257,150.0,6.696e-05,2]
[421216021,1777266550664,500.0,6.696e-05,2]
[421216022,1777266550742,82.80952348,6.696e-05,2]
[421216023,1777266550771,417.19047652,6.696e-05,2]
[421216025,1777266566045,9582.81952348,6.597e-05,2]
[421216026,1777266566072,10000.01,6.597e-05,2]
[421216027,1777266566099,10000.01,6.597e-05,2]
[421216028,1777266566125,10000.01,6.597e-05,2]
[421216029,1777266566150,10000.01,6.597e-05,2]
[421216030,1777266566176,10000.01,6.597e-05,2]
[421216031,1777266566203,10000.01,6.597e-05,2]
[421216032,1777266566233,10000.01,6.597e-05,2]
[421216033,1777266566261,10000.01,6.597e-05,2]
[421216034,1777266566287,10000.01,6.597e-05,2]
[421216038,1777266614500,-1200.0,6.596e-05,2]
[421216039,1777266614530,-238.0,6.596e-05,2]
[421216044,1777266632523,-290.80240393,6.597e-05,2]
[421216045,1777266632535,-136072.72416271,6.597e-05,2]
[421216046,1777266632547,-2568.57605432,6.597e-05,2]
[421216047,1777266632558,-3383.23563858,6.597e-05,2]
[421216048,1777266632569,-6678.06112565,6.597e-05,2]
[421216067,1777266639005,-258.6,6.597e-05,2]
[421216070,1777266639016,-383.736,6.597e-05,2]
[421216072,1777266639027,-615.21547425,6.597e-05,2]
[421216074,1777266639040,-547.85420609,6.597e-05,2]
[421216079,1777266639081,-789.6786542,6.597e-05,2]
[421216082,1777266639101,-36774.08757905,6.597e-05,2]
[421216084,1777266639112,-48993.48432967,6.597e-05,2]
[421216087,1777266639123,-829.67010334,6.597e-05,2]
[421216089,1777266639134,-748.97671534,6.597e-05,2]
[421216094,1777266639173,-1746.56751119,6.597e-05,2]
[421216164,1777266640752,-37928.80592239,6.597e-05,2]
[421216165,1777266640860,-1012.31971259,6.597e-05,2]
[421216166,1777266640871,-14413.45266802,6.597e-05,2]
[421216190,1777266643379,-546.0,6.597e-05,2]
[421216191,1777266647402,-683.12095,6.597e-05,2]
[421216192,1777266647561,-660.36242408,6.597e-05,2]
[421216224,1777266650486,-299.87304112,6.597e-05,2]
[421216225,1777266650495,-235.21724203,6.597e-05,2]
[421216226,1777266650504,-200.0,6.6e-05,2]
[421216227,1777266650513,-13.05246685,6.697e-05,2]
[421216228,1777266660186,-236.94753315,6.697e-05,2]
[421216229,1777266739241,500.0,6.596e-05,2]
[421216230,1777266739277,500.0,6.596e-05,2]
[421216231,1777266739316,500.0,6.596e-05,2]
[421216232,1777266739360,500.0,6.596e-05,2]
[421216233,1777266739414,500.0,6.596e-05,2]
[421216234,1777266739455,500.0,6.596e-05,2]
[421216235,1777266739520,500.0,6.596e-05,2]
[421216236,1777266739558,500.0,6.596e-05,2]
[421216237,1777266739596,500.0,6.596e-05,2]
[421216238,1777266739637,500.0,6.596e-05,2]
[421216239,1777266739674,500.0,6.596e-05,2]
[421216240,1777266739715,500.0,6.596e-05,2]
[421216241,1777266739760,500.0,6.596e-05,2]
[421216242,1777266739807,500.0,6.596e-05,2]
[421216243,1777266739845,500.0,6.596e-05,2]
[421216244,1777266739880,500.0,6.596e-05,2]
[421216245,1777266739922,500.0,6.596e-05,2]
[421216246,1777266739977,176.22965005,6.596e-05,2]
[421216247,1777266740021,500.0,6.596e-05,2]
[421216248,1777266740077,500.0,6.596e-05,2]
[421216249,1777266740114,323.78034995,6.596e-05,2]
[421216250,1777266740141,176.21965005,6.596e-05,2]
[421216251,1777266740227,500.0,6.596e-05,2]
[421216252,1777266740307,500.0,6.596e-05,2]
[421216253,1777266740344,500.0,6.596e-05,2]
[421216254,1777266740393,500.0,6.596e-05,2]
[421216255,1777266740441,500.0,6.596e-05,2]
[421216256,1777266740592,500.0,6.596e-05,2]
[421216257,1777266740633,500.0,6.596e-05,2]
[421216258,1777266742037,500.0,6.596e-05,2]
[421216259,1777266750570,500.0,6.596e-05,2]
[421216260,1777266775899,500.0,6.596e-05,2]
[421216261,1777266775951,500.0,6.596e-05,2]
[421216262,1777266794765,500.0,6.596e-05,2]
[421216263,1777266798014,500.0,6.596e-05,2]
[421216264,1777266798067,500.0,6.596e-05,2]
[421216265,1777266798126,250.0,6.596e-05,2]
[421216266,1777266806324,500.0,6.596e-05,2]
[421216267,1777266806365,500.0,6.596e-05,2]
[421216268,1777266910185,-241.0,6.799e-05,2]
[421216269,1777266925505,-1000.0,6.9e-05,2]
[421216271,1777267122166,412.56,0.00032192,120]
[421216272,1777267424748,1000.0,0.00032877,120]
[421216273,1777267441231,1000.0,0.00032877,120]
[421216274,1777267458124,1000.0,0.00032877,120]
[421216275,1777267473651,1000.0,0.00032877,120]
[421216276,1777267493448,1000.0,0.00032877,120]
[421216277,1777267511184,1000.0,0.00032877,120]
[421216278,1777267526870,1000.0,0.00032877,120]
[421216280,1777267542623,1000.0,0.00032877,120]
[421216281,1777267558168,1000.0,0.00032877,120]
[421216282,1777267575580,1025.15,0.00032877,120]
[421216284,1777267632169,543.0,0.00032877,120]
[421216285,1777267704371,187.0,0.00032877,120]
[421216286,1777267721108,500.0,0.00032192,120]
[421216287,1777267724053,8264.0,0.00032877,120]
[421216288,1777267736654,155.0,0.00032877,120]
[421216318,1777267831939,-447.83562076,8e-05,2]
[421216325,1777267831981,-895.41,8e-05,2]
[421216327,1777267831992,-2712.58744176,8e-05,2]
[421216330,1777267832008,-1069.20285405,8e-05,2]
[421216332,1777267832018,-254.0,8e-05,2]
[421216334,1777267832027,-250.0,8.019e-05,2]
[421216336,1777267832036,-300.0,8.037e-05,2]
[421216338,1777267832046,-1200.0,8.037e-05,2]
[421216340,1777267832057,-150.0,8.038e-05,2]
[421216342,1777267832066,-150.0,8.038e-05,2]
[421216344,1777267832075,-150.0,8.038e-05,2]
[421216346,1777267832084,-150.0,8.038e-05,2]
[421216348,1777267832094,-150.0,8.038e-05,2]
[421216350,1777267832103,-150.0,8.038e-05,2]
[421216351,1777267832112,-236.64789133,8.085e-05,2]
[421216352,1777267832123,-150.0,8.098e-05,2]
[421216354,1777267832132,-150.0,8.157e-05,2]
[421216356,1777267832144,-150.0,8.217e-05,2]
[421216357,1777267832153,-150.0,8.262e-05,2]
[421216358,1777267832163,-150.0,8.277e-05,2]
[421216359,1777267832172,-150.0,8.336e-05,2]
[421216360,1777267832181,-150.0,8.336e-05,2]
[421216361,1777267832190,-150.0,8.396e-05,2]
[421216362,1777267832199,-150.0,8.455e-05,2]
[421216363,1777267832212,-150.0,8.485e-05,2]
[421216364,1777267832221,-150.0,8.485e-05,2]
[421216365,1777267832230,-150.0,8.485e-05,2]
[421216366,1777267832240,-150.0,8.515e-05,2]
[421216367,1777267832249,-150.0,8.574e-05,2]
[421216368,1777267832258,-1046.87865558,8.575e-05,2]
[421216369,1777267832267,-150.0,8.634e-05,2]
[421216370,1777267832276,-150.0,8.634e-05,2]
[421216371,1777267832286,-150.0,8.693e-05,2]
[421216372,1777267832295,-150.0,8.708e-05,2]
[421216373,1777267832305,-150.0,8.753e-05,2]
[421216374,1777267832315,-900.0,8.8e-05,3]
[421216375,1777267832324,-150.0,8.8e-05,2]
[421216376,1777267832334,-300.0,8.8e-05,2]
[421216377,1777267832343,-300.0,8.8e-05,2]
[421216378,1777267832353,-300.0,8.8e-05,2]
[421216379,1777267832362,-300.0,8.8e-05,2]
[421216380,1777267832372,-447.39513584,8.8e-05,2]
[421216381,1777267832381,-5000.0,8.8e-05,2]
[421216382,1777267832391,-5000.0,8.8e-05,2]
[421216383,1777267832400,-5000.0,8.8e-05,2]
[421216384,1777267832409,-5000.0,8.8e-05,2]
[421216385,1777267832418,-5000.0,8.8e-05,2]
[421216386,1777267832427,-250.0,8.8e-05,2]
[421216387,1777267832436,-500.0,8.8e-05,2]
[421216388,1777267832445,-500.0,8.8e-05,2]
[421216389,1777267832457,-500.0,8.8e-05,2]
[421216390,1777267832467,-500.0,8.8e-05,2]
[421216391,1777267832476,-503.82549123,8.8e-05,2]
[421216392,1777267832486,-150.0,8.812e-05,2]
[421216393,1777267832495,-420.0,8.841e-05,2]
[421216394,1777267832504,-1490.0,8.841e-05,2]
[421216395,1777267832515,-1566.89678647,8.856e-05,2]
[421216396,1777267832528,-64577.66901353,8.856e-05,2]
[421216397,1777267832537,-2500.0,8.856e-05,2]
[421216398,1777267832547,-2210.1165,8.856e-05,2]
[421216399,1777267832557,-150.0,8.872e-05,2]
[421216400,1777267832567,-1900.0,8.9e-05,3]
[421216401,1777267832576,-150.0,8.932e-05,2]
[421216402,1777267832586,-150.0,8.932e-05,2]
[421216403,1777267832595,-150.0,8.932e-05,2]
[421216404,1777267832606,-150.0,8.932e-05,2]
[421216405,1777267832615,-209.89023699,8.932e-05,2]
[421216406,1777267832624,-150.0,8.932e-05,2]
[421216407,1777267832634,-500.0,8.955e-05,2]
[421216408,1777267832644,-371.48619546,8.955e-05,2]
[421216409,1777267832653,-500.0,8.955e-05,2]
[421216410,1777267832663,-500.0,8.955e-05,2]
[421216411,1777267832673,-500.0,8.955e-05,2]
[421216412,1777267832682,-500.0,8.955e-05,2]
[421216413,1777267832692,-500.0,8.955e-05,2]
[421216414,1777267832701,-183.6501599,8.955e-05,2]
[421216415,1777267832711,-500.0,8.955e-05,2]
[421216416,1777267832720,-500.0,8.955e-05,2]
[421216417,1777267832729,-500.0,8.955e-05,2]
[421216418,1777267832739,-500.0,8.955e-05,2]
[421216419,1777267832748,-500.0,8.955e-05,2]
[421216420,1777267832758,-500.0,8.955e-05,2]
[421216421,1777267832767,-500.0,8.955e-05,2]
[421216422,1777267832777,-400.2835928,8.955e-05,2]
[421216423,1777267832786,-500.0,8.955e-05,2]
[421216424,1777267832796,-267.622965,8.955e-05,2]
[421216425,1777267832807,-5419.65,8.955e-05,2]
[421216426,1777267832816,-999.99,8.955e-05,2]
[421216427,1777267832825,-9999.99,8.955e-05,2]
[421216428,1777267832835,-150.99,8.955e-05,2]
[421216429,1777267832844,-299.99,8.955e-05,2]
[421216430,1777267832856,-2670.24,8.955e-05,2]
[421216431,1777267832866,-258.155,8.955e-05,2]
[421216432,1777267832875,-250.0,8.955e-05,2]
[421216433,1777267832884,-30090.95540226,8.956e-05,2]
[421216434,1777267832906,-1254.41808677,8.956e-05,2]
[421216435,1777267832920,-901.23418243,8.956e-05,2]
[421216436,1777267832932,-1237.08734021,8.956e-05,2]
[421216439,1777267838025,-1234.2565,8.956e-05,2]
[421216440,1777267838037,-77079.53164845,8.956e-05,2]
[421216509,1777267840306,-1029.67326749,8.956e-05,2]
[421216516,1777267840363,-6061.57519651,8.956e-05,2]
[421216518,1777267840374,-6087.10756133,8.956e-05,2]
[421216521,1777267840385,-710.75,8.956e-05,2]
[421216537,1777267840527,-740.37060215,8.956e-05,2]
[421216703,1777267842761,-428.64012,8.956e-05,2]
[421216704,1777267842772,-6622.68588805,8.956e-05,2]
[421216705,1777267842929,-1957.78545957,8.956e-05,2]
[421216706,1777267843906,-416.0,8.956e-05,2]
[421216718,1777267845771,-11784.86603405,8.956e-05,2]
[421216719,1777267846195,-315.52696158,8.956e-05,2]
[421216720,1777267846213,-381.13930652,8.956e-05,2]
[421216721,1777267846227,-1064.21922074,8.956e-05,2]
[421216722,1777267846238,-295.17735855,8.956e-05,2]
[421216723,1777267846249,-7810.24304539,8.956e-05,2]
[421216724,1777267846332,-370.32589705,8.956e-05,2]
[421216732,1777267856125,152.0,8.994e-05,30]
[421216734,1777267931497,303.34576,0.00032876,120]
[421216735,1777268080017,2676.83,0.00032877,120]
[421216736,1777268218292,2480.05,0.00032,120]
[421216737,1777268692338,191.15,0.00032877,120]
[421216746,1777269022197,234.0,0.00032876,120]
[421216756,1777269031755,-150.0,7.866e-05,2]
[421216757,1777269031765,-150.0,7.866e-05,2]
[421216758,1777269031774,-150.0,7.866e-05,2]
[421216759,1777269031783,-150.0,7.866e-05,2]
[421216760,1777269031793,-4.36972902,7.866e-05,2]
[421216761,1777269031816,-145.63027098,7.866e-05,2]
[421216762,1777269031826,-110.12952947,7.866e-05,2]
[421216763,1777269031838,-39.87047053,7.866e-05,2]
[421216764,1777269031848,-150.0,7.866e-05,2]
[421216765,1777269031858,-250.0,7.866e-05,2]
[421216766,1777269031867,-110.13592363,7.866e-05,2]
[421216767,1777269031889,-142.86407637,7.866e-05,2]
[421216768,1777269031899,-605.55791006,7.938e-05,2]
[421216769,1777269032027,-594.44208994,7.938e-05,2]
[421216770,1777269032037,-145.39033187,7.939e-05,2]
[421216771,1777269032188,-4.60966813,7.939e-05,2]
[421216773,1777269032199,-150.0,8.011e-05,2]
[421216775,1777269032209,-433.87,8.023e-05,2]
[421216777,1777269032219,-150.0,8.084e-05,2]
[421216779,1777269032228,-150.0,8.157e-05,2]
[421216781,1777269032238,-150.0,8.23e-05,2]
[421216783,1777269032248,-150.0,8.303e-05,2]
[421216785,1777269032258,-150.0,8.303e-05,2]
[421216786,1777269032268,-150.0,8.376e-05,2]
[421216787,1777269032279,-150.0,8.448e-05,2]
[421216788,1777269032289,-366.0,8.494e-05,2]
[421216789,1777269032299,-433.87,8.495e-05,2]
[421216791,1777269032309,-150.0,8.521e-05,2]
[421216792,1777269032319,-150.0,8.594e-05,2]
[421216793,1777269032329,-152.0,8.651e-05,2]
[421216794,1777269032339,-152.0,8.651e-05,2]
[421216795,1777269032348,-152.0,8.651e-05,2]
[421216796,1777269032358,-272.77679535,8.651e-05,2]
[421216797,1777269032368,-219.25308464,8.651e-05,2]
[421216798,1777269032378,-174.61919141,8.651e-05,2]
[421216799,1777269032388,-300.0,8.652e-05,2]
[421216800,1777269032401,-300.0,8.652e-05,2]
[421216801,1777269032412,-300.0,8.652e-05,2]
[421216803,1777269032422,-300.0,8.652e-05,2]
[421216804,1777269032432,-300.0,8.652e-05,2]
[421216805,1777269032442,-250.0,8.652e-05,2]
[421216806,1777269032451,-5000.0,8.652e-05,2]
[421216808,1777269032461,-360.41630031,8.652e-05,2]
[421216809,1777269032473,-4639.58369969,8.652e-05,2]
[421216810,1777269032482,-4186.64476207,8.652e-05,2]
[421216811,1777269032492,-500.0,8.652e-05,2]
[421216812,1777269032501,-500.0,8.652e-05,2]
[421216813,1777269032510,-250.0,8.652e-05,2]
[421216814,1777269032520,-319.8493573,8.652e-05,2]
[421216815,1777269032529,-500.0,8.653e-05,2]
[421216817,1777269032539,-500.0,8.653e-05,2]
[421216819,1777269032548,-584.34852282,8.653e-05,2]
[421216821,1777269032557,-500.0,8.653e-05,2]
[421216822,1777269032567,-128299.67737162,8.654e-05,2]
[421216827,1777269038265,-3796.22534557,8.654e-05,2]
[421216828,1777269038277,-552.93113016,8.654e-05,2]
[421216829,1777269038293,-2917.5460326,8.654e-05,2]
[421216830,1777269038304,-4992.61308658,8.654e-05,2]
[421216831,1777269038341,-1163.35000001,8.654e-05,2]
[421216832,1777269038352,-6705.57245309,8.654e-05,2]
[421216857,1777269039939,-284.08696901,8.654e-05,2]
[421216859,1777269039950,-591.07158026,8.654e-05,2]
[421216865,1777269039992,-644.38,8.654e-05,2]
[421216910,1777269040412,-9948.13769428,8.654e-05,2]
[421216917,1777269040466,-152516.97604634,8.654e-05,2]
[421216919,1777269040478,-2510.73356464,8.654e-05,2]
[421216921,1777269040489,-1717.27217166,8.654e-05,2]
[421217050,1777269042832,-661.24,8.654e-05,2]
[421217051,1777269042885,-648.92043422,8.654e-05,2]
[421217058,1777269047628,-7019.88673891,8.654e-05,2]
[421217059,1777269047933,-462.26230759,8.654e-05,2]
[421217060,1777269047945,-7789.63561146,8.654e-05,2]
[421217061,1777269047989,-492.98298303,8.654e-05,2]
[421217062,1777269048001,-511.63701206,8.654e-05,2]
[421217089,1777269241446,1008.0,0.00032,120]
[421217125,1777269289192,255.91,5.7e-05,2]
[421217126,1777269299856,206.95,5.7e-05,2]
[421217260,1777269431143,160.0,0.00032876,120]
[421217261,1777269434306,160.0,0.00032876,120]
[421217271,1777269467603,347.97,5.7e-05,2]
[421217279,1777269481086,332.6,5.7e-05,2]
[421217282,1777269492840,2625.49,5.7e-05,2]
[421217285,1777269504687,2788.76,5.7e-05,2]
[421217349,1777269536145,160.0,0.00032876,120]
[421217440,1777269547502,1280.0,0.00032876,120]
[421217442,1777269557592,-300.0,0.00028493,30]
[421217443,1777269557625,-611.2616696,0.00028493,30]
[421217444,1777269557657,-177.67430597,0.00028493,30]
[421217445,1777269557689,-413.37902068,0.00028493,30]
[421217446,1777269557720,-201.93029831,0.00028493,30]
[421217447,1777269557751,-250.0,0.00028493,30]
[421217448,1777269557781,-150.0,0.00028493,30]
[421217449,1777269557811,-407.41969193,0.00028493,30]
[421217450,1777269557845,-156.22151516,0.00031233,30]
[421217451,1777269557875,-300.0,0.0003152,30]
[421217452,1777269557915,-501.0,0.0003153,30]
[421217453,1777269557951,-250.0,0.0003153,30]
[421217454,1777269557985,-205.0,0.0003153,30]
[421217455,1777269558021,-1963.0,0.0003153,30]
[421217456,1777269558055,-359.0,0.0003153,30]
[421217457,1777269558087,-195.0,0.0003153,30]
[421217458,1777269558120,-483.0,0.0003153,30]
[421217459,1777269558154,-607.0,0.0003153,30]
[421217460,1777269558190,-655.0,0.00031532,30]
[421217461,1777269558222,-208.0,0.00031532,30]
[421217462,1777269558255,-158.0,0.00031532,30]
[421217463,1777269558289,-500.0,0.0003225,45]
[421217464,1777269558321,-500.0,0.0003225,45]
[421217465,1777269558371,-500.0,0.00032303,60]
[421217466,1777269558406,-500.0,0.00032303,60]
[421217467,1777269558439,-566.8646776,0.00032303,60]
[421217468,1777269558474,-182.9703642,0.00032303,60]
[421217469,1777269558507,-781.7902441,0.00032303,60]
[421217470,1777269558541,-500.0,0.00032303,60]
[421217471,1777269558576,-500.0,0.00032303,60]
[421217472,1777269558609,-500.0,0.00032303,60]
[421217473,1777269558645,-331.0221012,0.00032303,60]
[421217474,1777269558679,-500.0,0.00032303,60]
[421217475,1777269558717,-519.6100786,0.00032303,60]
[421217476,1777269558750,-500.0,0.00032303,60]
[421217477,1777269560202,-500.0,0.00032303,60]
[421217478,1777269560257,-500.0,0.00032303,60]
[421217479,1777269560284,-500.0,0.00032303,60]
[421217480,1777269560311,-975.0767974,0.00032303,60]
[421217481,1777269560336,-445.1340489,0.00032303,60]
[421217482,1777269560362,-500.0,0.00032303,60]
[421217483,1777269560391,-500.0,0.00032303,60]
[421217484,1777269560415,-500.0,0.00032303,60]
[421217485,1777269560440,-500.0,0.00032303,60]
[421217486,1777269560465,-500.0,0.00032303,60]
[421217487,1777269560490,-588.8206591,0.00032303,60]
[421217488,1777269560515,-183.1750902,0.00032303,60]
[421217489,1777269560541,-500.0,0.00032303,60]
[421217490,1777269560567,-580.2176554,0.00032303,60]
[421217491,1777269560592,-500.0,0.00032303,60]
[421217492,1777269560618,-500.0,0.00032303,60]
[421217493,1777269560644,-500.0,0.00032303,60]
[421217494,1777269560670,-500.0,0.00032303,60]
[421217495,1777269560695,-500.0,0.00032303,60]
[421217496,1777269560720,-500.0,0.00032303,60]
[421217497,1777269560747,-500.0,0.00032303,60]
[421217498,1777269560772,-500.0,0.00032303,60]
[421217499,1777269560797,-500.0,0.00032303,60]
[421217500,1777269560823,-500.0,0.00032303,60]
[421217501,1777269560847,-807.1621659,0.00032303,60]
[421217502,1777269560873,-500.0,0.00032303,60]
[421217503,1777269560900,-500.0,0.00032303,60]
[421217504,1777269560927,-500.0,0.00032303,60]
[421217505,1777269560953,-500.0,0.00032303,60]
[421217506,1777269560979,-500.0,0.00032303,60]
[421217507,1777269561006,-500.0,0.00032303,60]
[421217508,1777269561036,-500.0,0.00032303,60]
[421217509,1777269561062,-500.0,0.00032303,60]
[421217510,1777269561088,-500.0,0.00032303,60]
[421217511,1777269561114,-500.0,0.00032303,60]
[421217512,1777269561143,-500.0,0.00032303,60]
[421217513,1777269561170,-500.0,0.00032303,60]
[421217514,1777269561197,-500.0,0.00032303,60]
[421217515,1777269561223,-500.0,0.00032303,60]
[421217516,1777269561250,-500.0,0.00032303,60]
[421217517,1777269561275,-500.0,0.00032303,60]
[421217518,1777269561300,-500.0,0.00032303,60]
[421217519,1777269561327,-500.0,0.00032303,60]
[421217520,1777269561353,-500.0,0.00032303,60]
[421217521,1777269561380,-500.0,0.00032303,60]
[421217522,1777269561407,-628.5323878,0.00032303,60]
[421217523,1777269561435,-600.0,0.00032303,60]
[421217524,1777269561463,-600.0,0.00032303,60]
[421217525,1777269561491,-600.0,0.00032303,60]
[421217526,1777269561519,-600.0,0.00032303,60]
[421217527,1777269561547,-600.0,0.00032303,60]
[421217528,1777269561574,-600.0,0.00032303,60]
[421217529,1777269561602,-600.0,0.00032303,60]
[421217530,1777269561628,-600.0,0.00032303,60]
[421217531,1777269561655,-600.0,0.00032303,60]
[421217532,1777269561682,-600.0,0.00032303,60]
[421217533,1777269561711,-600.0,0.00032303,60]
[421217534,1777269561739,-600.0,0.00032303,60]
[421217535,1777269561766,-600.0,0.00032303,60]
[421217536,1777269561794,-600.0,0.00032303,60]
[421217537,1777269561820,-500.0,0.00032303,60]
[421217538,1777269561847,-600.0,0.00032303,60]
[421217539,1777269561873,-777.7430355,0.00032303,60]
[421217540,1777269561901,-600.0,0.00032303,60]
[421217541,1777269561927,-600.0,0.00032303,60]
[421217542,1777269561955,-600.0,0.00032303,60]
[421217543,1777269561980,-199.8957445,0.00032303,60]
[421217544,1777269562007,-600.0,0.00032303,60]
[421217545,1777269562035,-600.0,0.00032303,60]
[421217546,1777269562063,-600.0,0.00032303,60]
[421217547,1777269562091,-600.0,0.00032303,60]
[421217548,1777269562119,-600.0,0.00032303,60]
[421217549,1777269562149,-600.0,0.00032303,60]
[421217550,1777269562179,-600.0,0.00032303,60]
[421217551,1777269562209,-600.0,0.00032303,60]
[421217552,1777269562238,-600.0,0.00032303,60]
[421217553,1777269562268,-1114.6278794,0.00032303,60]
[421217554,1777269562297,-501.0,0.0003253,30]
[421217555,1777269562327,-250.0,0.0003253,30]
[421217556,1777269562356,-205.0,0.0003253,30]
[421217557,1777269562385,-1963.0,0.0003253,30]
[421217558,1777269562415,-359.0,0.0003253,30]
[421217559,1777269562443,-195.0,0.0003253,30]
[421217560,1777269562471,-483.0,0.0003253,30]
[421217561,1777269562502,-607.0,0.0003253,30]
[421217562,1777269562530,-655.0,0.00032532,30]
[421217563,1777269562560,-208.0,0.00032532,30]
[421217564,1777269562588,-158.0,0.00032532,30]
[421217565,1777269562619,-375.29,0.00032713,30]
[421217566,1777269562650,-161.0,0.0003287,60]
[421217567,1777269562681,-1000.0,0.00032877,120]
[421217568,1777269562713,-1000.0,0.00032877,120]
[421217569,1777269562739,-1000.0,0.00032877,120]
[421217570,1777269562765,-1000.0,0.00032877,120]
[421217571,1777269562793,-1000.0,0.00032877,120]
[421217572,1777269562821,-1000.0,0.00032877,120]
[421217573,1777269562847,-1000.0,0.00032877,120]
[421217574,1777269562874,-1000.0,0.00032877,120]
[421217575,1777269562903,-1000.0,0.00032877,120]
[421217576,1777269562931,-1000.0,0.00032877,120]
[421217577,1777269563278,-150.0,0.00032877,30]
[421217578,1777269563305,-150.0,0.00032877,30]
[421217579,1777269563332,-150.0,0.00032877,30]
[421217580,1777269563358,-150.0,0.00032877,30]
[421217581,1777269563385,-234.0,0.00032877,30]
[421217582,1777269563411,-365.98578422,0.00032877,120]
[421217583,1777269563436,-3025.0,0.00032877,120]
[421217584,1777269563462,-3278.0436638,0.00032877,120]
[421217585,1777269563487,-3148.0,0.00032877,120]
[421217586,1777269563512,-309.91050308,0.00032877,120]
[421217587,1777269563537,-2010.368206,0.00032877,120]
[421217588,1777269563564,-500.0,0.00032877,120]
[421217589,1777269563590,-161.0,0.0003289,60]
[421217590,1777269563618,-160.5,0.000329,120]
[421217591,1777269563645,-500.0,0.00033,120]
[421217592,1777269563670,-160.0,0.00033,120]
[421217593,1777269563697,-160.0,0.00033,30]
[421217594,1777269563722,-207.31603756,0.00033,120]
[421217595,1777269563748,-156.22,0.00033205,30]
[421217596,1777269563776,-501.0,0.0003353,30]
[421217597,1777269563802,-250.0,0.0003353,30]
[421217598,1777269563829,-205.0,0.0003353,30]
[421217599,1777269563855,-1963.0,0.0003353,30]
[421217600,1777269563882,-359.0,0.0003353,30]
[421217601,1777269563909,-195.0,0.0003353,30]
[421217602,1777269563936,-483.0,0.0003353,30]
[421217603,1777269563964,-607.0,0.0003353,30]
[421217604,1777269563993,-655.0,0.00033532,30]
[421217605,1777269564021,-208.0,0.00033532,30]
[421217606,1777269564049,-158.0,0.00033532,30]
[421217607,1777269564075,-500.0,0.00033562,120]